[Event "Titled Tuesday Blitz June 6 Late 2023"]
[White "Gonzalez Vega, Alejandro"]
[Black "Liu, Eric"]
[WhiteFideId "3510042"]
[BlackFideId "30960240"]
[WhiteElo "2308"]
[BlackElo "2094"]
[Result "0-1"]
[Round "6"]
[TimeControl "180+2"]
[Date "2023.06.07"]
[WhiteClock "0:00:11"]
[BlackClock "0:00:18"]
[Board "127"]

1. e4 {[%clk 0:02:53]}  b6 {[%clk 0:02:25]} 2. d4 {[%clk 0:02:50]}  Bb7 {[%clk 0:02:25]} 3. Bd3 {[%clk 0:02:49]}  e6 {[%clk 0:02:25]} 4. Qe2 {[%clk 0:02:49]}  h5 {[%clk 0:02:26]} 5. c3 {[%clk 0:02:47]}  h4 {[%clk 0:02:26]} 6. h3 {[%clk 0:02:47]}  d5 {[%clk 0:02:26]} 7. Nd2 {[%clk 0:02:45]}  Nf6 {[%clk 0:02:26]} 8. e5 {[%clk 0:02:44]}  Nfd7 {[%clk 0:02:27]} 9. f4 {[%clk 0:02:42]}  g6 {[%clk 0:02:26]} 10. Ngf3 {[%clk 0:02:41]}  Be7 {[%clk 0:02:25]} 11. a4 {[%clk 0:02:40]}  c5 {[%clk 0:02:25]} 12. a5 {[%clk 0:02:31]}  bxa5 {[%clk 0:02:21]} 13. O-O {[%clk 0:02:23]}  Nc6 {[%clk 0:02:20]} 14. Bb5 {[%clk 0:02:05]}  Qb6 {[%clk 0:02:20]} 15. Kh1 {[%clk 0:01:46]}  a6 {[%clk 0:02:17]} 16. Ba4 {[%clk 0:01:43]}  cxd4 {[%clk 0:02:15]} 17. cxd4 {[%clk 0:01:43]}  Nxd4 {[%clk 0:02:10]} 18. Nxd4 {[%clk 0:01:43]}  Qxd4 {[%clk 0:02:11]} 19. Nf3 {[%clk 0:01:42]}  Qe4 {[%clk 0:02:00]} 20. Qd2 {[%clk 0:01:33]}  Rd8 {[%clk 0:01:41]} 21. Qxa5 {[%clk 0:01:18]}  O-O {[%clk 0:01:40]} 22. Re1 {[%clk 0:01:05]}  Qb4 {[%clk 0:01:38]} 23. Bd2 {[%clk 0:00:58]}  Qxa5 {[%clk 0:01:05]} 24. Bxa5 {[%clk 0:00:59]}  Nc5 {[%clk 0:01:05]} 25. Bxd8 {[%clk 0:00:59]}  Rxd8 {[%clk 0:01:05]} 26. Bc2 {[%clk 0:00:50]}  Ne4 {[%clk 0:01:06]} 27. Bxe4 {[%clk 0:00:50]}  dxe4 {[%clk 0:01:06]} 28. Nh2 {[%clk 0:00:46]}  Rd2 {[%clk 0:01:06]} 29. Rad1 {[%clk 0:00:40]}  Rxb2 {[%clk 0:01:05]} 30. Rb1 {[%clk 0:00:40]}  Rb4 {[%clk 0:00:57]} 31. Rxb4 {[%clk 0:00:40]}  Bxb4 {[%clk 0:00:58]} 32. Rb1 {[%clk 0:00:39]}  a5 {[%clk 0:00:58]} 33. Nf1 {[%clk 0:00:38]}  Ba6 {[%clk 0:00:57]} 34. Ne3 {[%clk 0:00:38]}  Bd3 {[%clk 0:00:57]} 35. Ra1 {[%clk 0:00:37]}  Bc3 {[%clk 0:00:43]} 36. Ra3 {[%clk 0:00:35]}  Bb4 {[%clk 0:00:42]} 37. Ra1 {[%clk 0:00:34]}  Bd2 {[%clk 0:00:41]} 38. Ng4 {[%clk 0:00:33]}  e3 {[%clk 0:00:41]} 39. Nxe3 {[%clk 0:00:22]}  Bxe3 {[%clk 0:00:42]} 40. Ra3 {[%clk 0:00:22]}  Bxf4 {[%clk 0:00:43]} 41. Rxd3 {[%clk 0:00:21]}  Bxe5 {[%clk 0:00:44]} 42. Ra3 {[%clk 0:00:20]}  Bc7 {[%clk 0:00:43]} 43. Kg1 {[%clk 0:00:19]}  Kg7 {[%clk 0:00:38]} 44. Kf2 {[%clk 0:00:20]}  Bg3+ {[%clk 0:00:33]} 45. Kf3 {[%clk 0:00:20]}  Be1 {[%clk 0:00:33]} 46. Kg4 {[%clk 0:00:19]}  Kh6 {[%clk 0:00:29]} 47. Ra4 {[%clk 0:00:17]}  g5 {[%clk 0:00:26]} 48. Kf3 {[%clk 0:00:17]}  Kg6 {[%clk 0:00:26]} 49. Ke4 {[%clk 0:00:17]}  Bb4 {[%clk 0:00:24]} 50. Ra2 {[%clk 0:00:17]}  Kf6 {[%clk 0:00:22]} 51. Rf2+ {[%clk 0:00:16]}  Ke7 {[%clk 0:00:23]} 52. Ke5 {[%clk 0:00:16]}  a4 {[%clk 0:00:20]} 53. Ra2 {[%clk 0:00:15]}  a3 {[%clk 0:00:20]} 54. Kd4 {[%clk 0:00:16]}  f5 {[%clk 0:00:20]} 55. Kc4 {[%clk 0:00:15]}  Bd6 {[%clk 0:00:20]} 56. Kb3 {[%clk 0:00:15]}  Kf6 {[%clk 0:00:19]} 57. Re2 {[%clk 0:00:16]}  g4 {[%clk 0:00:19]} 58. hxg4 {[%clk 0:00:14]}  fxg4 {[%clk 0:00:20]} 59. Re4 {[%clk 0:00:14]}  Kf5 {[%clk 0:00:20]} 60. Ra4 {[%clk 0:00:14]}  h3 {[%clk 0:00:18]} 61. gxh3 {[%clk 0:00:14]}  gxh3 {[%clk 0:00:19]} 62. Rh4 {[%clk 0:00:13]}  h2 {[%clk 0:00:19]} 63. Rh7 {[%clk 0:00:12]}  Kg4 {[%clk 0:00:18]} 64. Ka2 {[%clk 0:00:12]}  Kf3 {[%clk 0:00:18]} 65. Rh3+ {[%clk 0:00:11]}  Kg2 {[%clk 0:00:18]} 66. Rxh2+ {[%clk 0:00:10]}  Kxh2 {[%clk 0:00:18]} 67. Kb3 {[%clk 0:00:11]}  Kg3 {[%clk 0:00:18]} 0-1


[Site "https://www.chess.com"]

[Event "Titled Tuesday Blitz June 6 Late 2023"]
[White "Amanov, Zhanibek"]
[Black "Magallanes, Rey Jomar"]
[WhiteFideId "13700189"]
[BlackFideId "5205948"]
[WhiteElo "2134"]
[BlackElo "2304"]
[Result "1-0"]
[Round "6"]
[TimeControl "180+2"]
[Date "2023.06.07"]
[WhiteClock "0:01:26"]
[BlackClock "0:00:47"]
[Board "128"]

1. e4 {[%clk 0:03:00]}  c5 {[%clk 0:02:59]} 2. c3 {[%clk 0:03:00]}  d5 {[%clk 0:02:59]} 3. exd5 {[%clk 0:03:00]}  Qxd5 {[%clk 0:03:00]} 4. Nf3 {[%clk 0:03:00]}  Nc6 {[%clk 0:02:59]} 5. d4 {[%clk 0:03:00]}  Nf6 {[%clk 0:02:59]} 6. Be2 {[%clk 0:03:00]}  e6 {[%clk 0:02:58]} 7. O-O {[%clk 0:03:00]}  Be7 {[%clk 0:02:58]} 8. dxc5 {[%clk 0:03:00]}  Qxc5 {[%clk 0:02:56]} 9. Be3 {[%clk 0:03:00]}  Qf5 {[%clk 0:02:56]} 10. Bd3 {[%clk 0:02:56]}  Qh5 {[%clk 0:02:54]} 11. Nbd2 {[%clk 0:02:56]}  O-O {[%clk 0:02:53]} 12. Qc2 {[%clk 0:02:55]}  Ng4 {[%clk 0:02:51]} 13. Bf4 {[%clk 0:02:53]}  e5 {[%clk 0:02:44]} 14. Bg3 {[%clk 0:02:52]}  f5 {[%clk 0:02:42]} 15. h3 {[%clk 0:02:45]}  e4 {[%clk 0:02:25]} 16. Bc4+ {[%clk 0:02:44]}  Kh8 {[%clk 0:02:24]} 17. hxg4 {[%clk 0:02:40]}  Qxg4 {[%clk 0:02:22]} 18. Nh2 {[%clk 0:02:38]}  Qg5 {[%clk 0:02:19]} 19. Rfe1 {[%clk 0:02:18]}  f4 {[%clk 0:02:04]} 20. Nxe4 {[%clk 0:02:17]}  Qg6 {[%clk 0:02:03]} 21. Bd3 {[%clk 0:02:14]}  fxg3 {[%clk 0:02:00]} 22. Nxg3 {[%clk 0:02:14]}  Qf6 {[%clk 0:01:58]} 23. Bxh7 {[%clk 0:02:09]}  Bc5 {[%clk 0:01:56]} 24. Ne4 {[%clk 0:01:59]}  Qe5 {[%clk 0:01:39]} 25. Nf3 {[%clk 0:01:49]}  Rxf3 {[%clk 0:01:33]} 26. Nxc5 {[%clk 0:01:42]}  Qxc5 {[%clk 0:01:27]} 27. b4 {[%clk 0:01:31]}  Bf5 {[%clk 0:01:04]} 28. bxc5 {[%clk 0:01:28]}  Bxc2 {[%clk 0:01:03]} 29. Bxc2 {[%clk 0:01:28]}  Rxc3 {[%clk 0:01:01]} 30. Bb3 {[%clk 0:01:28]}  Rxc5 {[%clk 0:01:01]} 31. Re3 {[%clk 0:01:27]}  g6 {[%clk 0:00:58]} 32. Rd1 {[%clk 0:01:26]}  Rd8 {[%clk 0:00:47]} 33. Rxd8+ {[%clk 0:01:25]}  Nxd8 {[%clk 0:00:47]} 34. Re8+ {[%clk 0:01:26]}  Kh7 {[%clk 0:00:47]} 35. Rxd8 {[%clk 0:01:27]}  Rc1+ {[%clk 0:00:46]} 36. Kh2 {[%clk 0:01:27]}  g5 {[%clk 0:00:47]} 37. f3 {[%clk 0:01:26]} 1-0


[Site "https://www.chess.com"]

[Event "Titled Tuesday Blitz June 6 Late 2023"]
[White "mohsengabr2002"]
[Black "Szyszylo, Rafal"]
[BlackFideId "1109626"]
[WhiteElo "2256"]
[BlackElo "1951"]
[Result "0-1"]
[Round "6"]
[TimeControl "180+2"]
[Date "2023.06.07"]
[WhiteClock "0:00:24"]
[BlackClock "0:00:14"]
[Board "129"]

1. e4 {[%clk 0:03:00]}  d6 {[%clk 0:02:59]} 2. d4 {[%clk 0:02:59]}  Nf6 {[%clk 0:02:58]} 3. Nc3 {[%clk 0:02:58]}  g6 {[%clk 0:02:58]} 4. f3 {[%clk 0:02:58]}  c6 {[%clk 0:02:58]} 5. Be3 {[%clk 0:02:57]}  b5 {[%clk 0:02:57]} 6. Qd2 {[%clk 0:02:56]}  Nbd7 {[%clk 0:02:57]} 7. Nge2 {[%clk 0:02:55]}  Nb6 {[%clk 0:02:57]} 8. Ng3 {[%clk 0:02:54]}  h5 {[%clk 0:02:47]} 9. h4 {[%clk 0:02:50]}  Bg7 {[%clk 0:02:44]} 10. a4 {[%clk 0:02:49]}  b4 {[%clk 0:02:38]} 11. Nd1 {[%clk 0:02:49]}  a5 {[%clk 0:02:38]} 12. Nf2 {[%clk 0:02:49]}  Qc7 {[%clk 0:02:32]} 13. b3 {[%clk 0:02:40]}  c5 {[%clk 0:02:12]} 14. Ne2 {[%clk 0:02:33]}  c4 {[%clk 0:02:06]} 15. Nf4 {[%clk 0:02:24]}  Ba6 {[%clk 0:02:03]} 16. N2h3 {[%clk 0:02:24]}  O-O {[%clk 0:01:42]} 17. Ng5 {[%clk 0:02:23]}  cxb3 {[%clk 0:01:41]} 18. cxb3 {[%clk 0:02:23]}  Bxf1 {[%clk 0:01:41]} 19. Rxf1 {[%clk 0:02:21]}  Rac8 {[%clk 0:01:37]} 20. Kf2 {[%clk 0:02:04]}  e5 {[%clk 0:01:36]} 21. Ne2 {[%clk 0:01:58]}  d5 {[%clk 0:01:10]} 22. Rfc1 {[%clk 0:01:55]}  Qb8 {[%clk 0:01:09]} 23. dxe5 {[%clk 0:01:51]}  Nfd7 {[%clk 0:00:57]} 24. f4 {[%clk 0:01:41]}  dxe4 {[%clk 0:00:52]} 25. Nxe4 {[%clk 0:01:37]}  Rcd8 {[%clk 0:00:44]} 26. Qc2 {[%clk 0:01:25]}  Nd5 {[%clk 0:00:44]} 27. Bd4 {[%clk 0:01:13]}  Rc8 {[%clk 0:00:37]} 28. Qd2 {[%clk 0:01:13]}  Rfe8 {[%clk 0:00:32]} 29. Nd6 {[%clk 0:01:07]}  Rxc1 {[%clk 0:00:33]} 30. Rxc1 {[%clk 0:01:07]}  Rf8 {[%clk 0:00:27]} 31. Kg1 {[%clk 0:00:58]}  Ne7 {[%clk 0:00:27]} 32. Bf2 {[%clk 0:00:56]}  Rd8 {[%clk 0:00:23]} 33. Nd4 {[%clk 0:00:55]}  Nf8 {[%clk 0:00:23]} 34. Nc6 {[%clk 0:00:54]}  Nxc6 {[%clk 0:00:22]} 35. Rxc6 {[%clk 0:00:53]}  Ne6 {[%clk 0:00:20]} 36. g3 {[%clk 0:00:52]}  Bf8 {[%clk 0:00:19]} 37. Qd5 {[%clk 0:00:47]}  Bxd6 {[%clk 0:00:17]} 38. Rxd6 {[%clk 0:00:47]}  Rc8 {[%clk 0:00:17]} 39. Qxa5 {[%clk 0:00:41]}  Rc1+ {[%clk 0:00:16]} 40. Kh2 {[%clk 0:00:41]}  Qb7 {[%clk 0:00:16]} 41. Qd5 {[%clk 0:00:38]}  Qc7 {[%clk 0:00:14]} 42. Rxe6 {[%clk 0:00:37]}  fxe6 {[%clk 0:00:13]} 43. Qxe6+ {[%clk 0:00:38]}  Qf7 {[%clk 0:00:14]} 44. Qxf7+ {[%clk 0:00:34]}  Kxf7 {[%clk 0:00:15]} 45. a5 {[%clk 0:00:32]}  Ra1 {[%clk 0:00:14]} 46. Bb6 {[%clk 0:00:31]}  Ra3 {[%clk 0:00:14]} 47. Kg2 {[%clk 0:00:29]}  Rxb3 {[%clk 0:00:14]} 48. a6 {[%clk 0:00:29]}  Ra3 {[%clk 0:00:15]} 49. a7 {[%clk 0:00:30]}  b3 {[%clk 0:00:15]} 50. Bc5 {[%clk 0:00:27]}  Rxa7 {[%clk 0:00:13]} 51. Bxa7 {[%clk 0:00:25]}  b2 {[%clk 0:00:13]} 52. Bf2 {[%clk 0:00:26]}  b1=Q {[%clk 0:00:13]} 53. Kf3 {[%clk 0:00:27]}  Qd3+ {[%clk 0:00:13]} 54. Be3 {[%clk 0:00:27]}  Ke6 {[%clk 0:00:14]} 55. Kf2 {[%clk 0:00:27]}  Kf5 {[%clk 0:00:14]} 56. e6 {[%clk 0:00:26]}  Kxe6 {[%clk 0:00:14]} 57. Bc5 {[%clk 0:00:24]}  Qc2+ {[%clk 0:00:13]} 58. Kf3 {[%clk 0:00:24]}  Qxc5 {[%clk 0:00:14]} 0-1


[Site "https://www.chess.com"]

[Event "Titled Tuesday Blitz June 6 Late 2023"]
[White "Araujo Filho, Luiz Antonio Coel"]
[Black "Buchenau, Frank"]
[WhiteFideId "2130661"]
[BlackFideId "4604350"]
[WhiteElo "2056"]
[BlackElo "2157"]
[Result "0-1"]
[Round "6"]
[TimeControl "180+2"]
[Date "2023.06.07"]
[WhiteClock "0:00:07"]
[BlackClock "0:01:57"]
[Board "137"]

1. d4 {[%clk 0:00:45]}  e6 {[%clk 0:02:57]} 2. Nf3 {[%clk 0:00:45]}  Nf6 {[%clk 0:02:57]} 3. e3 {[%clk 0:00:46]}  b6 {[%clk 0:02:57]} 4. Bd3 {[%clk 0:00:46]}  Bb7 {[%clk 0:02:57]} 5. Nbd2 {[%clk 0:00:47]}  c5 {[%clk 0:02:57]} 6. Qe2 {[%clk 0:00:47]}  g6 {[%clk 0:02:57]} 7. O-O {[%clk 0:00:47]}  Bg7 {[%clk 0:02:57]} 8. c3 {[%clk 0:00:48]}  O-O {[%clk 0:02:57]} 9. e4 {[%clk 0:00:49]}  cxd4 {[%clk 0:02:56]} 10. cxd4 {[%clk 0:00:49]}  Nc6 {[%clk 0:02:55]} 11. a3 {[%clk 0:00:49]}  Rc8 {[%clk 0:02:52]} 12. e5 {[%clk 0:00:50]}  Nd5 {[%clk 0:02:51]} 13. Ne4 {[%clk 0:00:50]}  Rb8 {[%clk 0:02:38]} 14. h4 {[%clk 0:00:43]}  f6 {[%clk 0:02:38]} 15. exf6 {[%clk 0:00:38]}  Nxf6 {[%clk 0:02:38]} 16. Bg5 {[%clk 0:00:34]}  h6 {[%clk 0:02:33]} 17. Nxf6+ {[%clk 0:00:29]}  Bxf6 {[%clk 0:02:32]} 18. Bxh6 {[%clk 0:00:29]}  Nxd4 {[%clk 0:02:26]} 19. Nxd4 {[%clk 0:00:26]}  Bxd4 {[%clk 0:02:27]} 20. Bxg6 {[%clk 0:00:20]}  Rf6 {[%clk 0:02:24]} 21. Qg4 {[%clk 0:00:19]}  Rxg6 {[%clk 0:02:08]} 22. Qxg6+ {[%clk 0:00:19]}  Kh8 {[%clk 0:02:09]} 23. Rad1 {[%clk 0:00:16]}  Qxh4 {[%clk 0:02:02]} 24. Rd3 {[%clk 0:00:08]}  Rg8 {[%clk 0:01:58]} 25. Qf7 {[%clk 0:00:07]}  Rxg2# {[%clk 0:01:57]} 0-1


[Site "https://www.chess.com"]

[Event "Titled Tuesday Blitz June 6 Late 2023"]
[White "zano2023"]
[Black "The_Straightforward_Rook"]
[WhiteElo "2136"]
[BlackElo "2372"]
[Result "1/2-1/2"]
[Round "6"]
[TimeControl "180+2"]
[Date "2023.06.07"]
[WhiteClock "0:00:14"]
[BlackClock "0:00:27"]
[Board "138"]

1. d4 {[%clk 0:03:00]}  Nf6 {[%clk 0:02:59]} 2. Nd2 {[%clk 0:02:59]}  d5 {[%clk 0:02:57]} 3. Ngf3 {[%clk 0:02:56]}  e6 {[%clk 0:02:55]} 4. e3 {[%clk 0:02:57]}  Nbd7 {[%clk 0:02:54]} 5. Bd3 {[%clk 0:02:57]}  Bd6 {[%clk 0:02:52]} 6. O-O {[%clk 0:02:56]}  b6 {[%clk 0:02:53]} 7. Qe2 {[%clk 0:02:55]}  Bb7 {[%clk 0:02:53]} 8. e4 {[%clk 0:02:54]}  dxe4 {[%clk 0:02:52]} 9. Nxe4 {[%clk 0:02:55]}  Nxe4 {[%clk 0:02:48]} 10. Bxe4 {[%clk 0:02:55]}  Bxe4 {[%clk 0:02:47]} 11. Qxe4 {[%clk 0:02:56]}  Nf6 {[%clk 0:02:47]} 12. Qc6+ {[%clk 0:02:56]}  Kf8 {[%clk 0:02:44]} 13. Bg5 {[%clk 0:02:54]}  h6 {[%clk 0:02:42]} 14. Bh4 {[%clk 0:02:51]}  g5 {[%clk 0:02:42]} 15. Bg3 {[%clk 0:02:51]}  Kg7 {[%clk 0:02:43]} 16. Ne5 {[%clk 0:02:48]}  h5 {[%clk 0:02:33]} 17. h4 {[%clk 0:02:44]}  g4 {[%clk 0:02:25]} 18. c4 {[%clk 0:02:39]}  Qe8 {[%clk 0:02:22]} 19. Qxe8 {[%clk 0:02:22]}  Rhxe8 {[%clk 0:02:22]} 20. Rfe1 {[%clk 0:02:18]}  c5 {[%clk 0:02:14]} 21. dxc5 {[%clk 0:02:11]}  Bxc5 {[%clk 0:02:09]} 22. Nd3 {[%clk 0:02:07]}  Rac8 {[%clk 0:02:06]} 23. Be5 {[%clk 0:02:04]}  Kg6 {[%clk 0:02:06]} 24. Rac1 {[%clk 0:01:51]}  Nd7 {[%clk 0:01:54]} 25. Bc3 {[%clk 0:01:47]}  g3 {[%clk 0:01:41]} 26. Kf1 {[%clk 0:01:36]}  gxf2 {[%clk 0:01:40]} 27. Nxf2 {[%clk 0:01:34]}  Bxf2 {[%clk 0:01:39]} 28. Kxf2 {[%clk 0:01:33]}  Nc5 {[%clk 0:01:40]} 29. Rcd1 {[%clk 0:01:30]}  Red8 {[%clk 0:01:35]} 30. Bd4 {[%clk 0:01:18]}  Rd7 {[%clk 0:01:17]} 31. Bxc5 {[%clk 0:01:17]}  Rxd1 {[%clk 0:01:15]} 32. Rxd1 {[%clk 0:01:15]}  Rxc5 {[%clk 0:01:15]} 33. b3 {[%clk 0:01:15]}  Rc7 {[%clk 0:01:09]} 34. Kf3 {[%clk 0:01:12]}  Kf5 {[%clk 0:01:07]} 35. Rd4 {[%clk 0:01:08]}  e5 {[%clk 0:01:07]} 36. Rd5 {[%clk 0:00:57]}  f6 {[%clk 0:01:05]} 37. g3 {[%clk 0:00:55]}  Ke6 {[%clk 0:00:59]} 38. Rd8 {[%clk 0:00:54]}  Rd7 {[%clk 0:00:56]} 39. Re8+ {[%clk 0:00:43]}  Kf5 {[%clk 0:00:55]} 40. Rh8 {[%clk 0:00:41]}  Rd3+ {[%clk 0:00:53]} 41. Kf2 {[%clk 0:00:40]}  Kg6 {[%clk 0:00:46]} 42. Rg8+ {[%clk 0:00:39]}  Kf7 {[%clk 0:00:46]} 43. Rh8 {[%clk 0:00:38]}  Rd2+ {[%clk 0:00:45]} 44. Kf3 {[%clk 0:00:38]}  Rxa2 {[%clk 0:00:46]} 45. Rxh5 {[%clk 0:00:38]}  Ra3 {[%clk 0:00:46]} 46. Rh7+ {[%clk 0:00:37]}  Kg6 {[%clk 0:00:45]} 47. Rb7 {[%clk 0:00:34]}  Rxb3+ {[%clk 0:00:45]} 48. Kg2 {[%clk 0:00:28]}  a5 {[%clk 0:00:44]} 49. c5 {[%clk 0:00:28]}  b5 {[%clk 0:00:43]} 50. c6 {[%clk 0:00:28]}  Rc3 {[%clk 0:00:42]} 51. Rxb5 {[%clk 0:00:27]}  Rxc6 {[%clk 0:00:30]} 52. Rxa5 {[%clk 0:00:27]}  e4 {[%clk 0:00:29]} 53. Kh3 {[%clk 0:00:23]}  f5 {[%clk 0:00:28]} 54. Kg2 {[%clk 0:00:23]}  Rc2+ {[%clk 0:00:28]} 55. Kf1 {[%clk 0:00:22]}  Rc3 {[%clk 0:00:27]} 56. Kf2 {[%clk 0:00:21]}  Rf3+ {[%clk 0:00:27]} 57. Kg2 {[%clk 0:00:22]}  Kh5 {[%clk 0:00:28]} 58. Ra8 {[%clk 0:00:21]}  Rd3 {[%clk 0:00:27]} 59. Rh8+ {[%clk 0:00:20]}  Kg6 {[%clk 0:00:27]} 60. Rg8+ {[%clk 0:00:20]}  Kf7 {[%clk 0:00:28]} 61. Rh8 {[%clk 0:00:19]}  Rd2+ {[%clk 0:00:27]} 62. Kf1 {[%clk 0:00:19]}  Rd3 {[%clk 0:00:27]} 63. Kf2 {[%clk 0:00:18]}  Ra3 {[%clk 0:00:27]} 64. Rh7+ {[%clk 0:00:18]}  Kg6 {[%clk 0:00:27]} 65. Re7 {[%clk 0:00:18]}  Kf6 {[%clk 0:00:27]} 66. Re8 {[%clk 0:00:18]}  Kg6 {[%clk 0:00:27]} 67. Rg8+ {[%clk 0:00:17]}  Kh5 {[%clk 0:00:27]} 68. Rg5+ {[%clk 0:00:17]}  Kh6 {[%clk 0:00:28]} 69. Rxf5 {[%clk 0:00:17]}  Kg6 {[%clk 0:00:28]} 70. Re5 {[%clk 0:00:17]}  Ra4 {[%clk 0:00:28]} 71. Re8 {[%clk 0:00:17]}  Ra3 {[%clk 0:00:28]} 72. Rxe4 {[%clk 0:00:16]}  Ra2+ {[%clk 0:00:28]} 73. Kf3 {[%clk 0:00:15]}  Ra3+ {[%clk 0:00:29]} 74. Kg4 {[%clk 0:00:16]}  Ra6 {[%clk 0:00:28]} 75. h5+ {[%clk 0:00:16]}  Kh6 {[%clk 0:00:28]} 76. Rf4 {[%clk 0:00:16]}  Ra5 {[%clk 0:00:28]} 77. Rf5 {[%clk 0:00:15]}  Ra4+ {[%clk 0:00:26]} 78. Rf4 {[%clk 0:00:15]}  Ra5 {[%clk 0:00:26]} 79. Rf5 {[%clk 0:00:14]}  Ra4+ {[%clk 0:00:27]} 80. Rf4 {[%clk 0:00:14]}  Ra5 {[%clk 0:00:27]} 1/2-1/2


[Site "https://www.chess.com"]

[Event "Titled Tuesday Blitz June 6 Late 2023"]
[White "dorpato"]
[Black "Stachanczyk, Jacek"]
[BlackFideId "1116657"]
[WhiteElo "2068"]
[BlackElo "2084"]
[Result "0-1"]
[Round "6"]
[TimeControl "180+2"]
[Date "2023.06.07"]
[WhiteClock "0:00:02"]
[BlackClock "0:00:27"]
[Board "140"]

1. e4 {[%clk 0:03:00]}  c5 {[%clk 0:02:54]} 2. Nc3 {[%clk 0:02:58]}  g6 {[%clk 0:02:52]} 3. d3 {[%clk 0:02:49]}  Bg7 {[%clk 0:02:52]} 4. g3 {[%clk 0:02:49]}  Nc6 {[%clk 0:02:51]} 5. Be3 {[%clk 0:02:48]}  d6 {[%clk 0:02:51]} 6. Qd2 {[%clk 0:02:43]}  e5 {[%clk 0:02:51]} 7. Bg2 {[%clk 0:02:42]}  Be6 {[%clk 0:02:50]} 8. h3 {[%clk 0:02:41]}  Qd7 {[%clk 0:02:50]} 9. f4 {[%clk 0:02:40]}  exf4 {[%clk 0:02:49]} 10. Bxf4 {[%clk 0:02:40]}  Nge7 {[%clk 0:02:47]} 11. g4 {[%clk 0:02:40]}  h5 {[%clk 0:02:46]} 12. gxh5 {[%clk 0:02:33]}  Rxh5 {[%clk 0:02:43]} 13. O-O-O {[%clk 0:02:28]}  Nd4 {[%clk 0:02:40]} 14. Nge2 {[%clk 0:02:24]}  Nxe2+ {[%clk 0:02:29]} 15. Nxe2 {[%clk 0:02:16]}  O-O-O {[%clk 0:02:23]} 16. Ng3 {[%clk 0:02:04]}  Rh7 {[%clk 0:02:20]} 17. a3 {[%clk 0:02:04]}  Rdh8 {[%clk 0:02:11]} 18. Qa5 {[%clk 0:01:45]}  Kb8 {[%clk 0:02:04]} 19. Qxc5 {[%clk 0:01:32]}  Nc8 {[%clk 0:01:39]} 20. Qb4 {[%clk 0:01:06]}  Ka8 {[%clk 0:01:18]} 21. d4 {[%clk 0:00:45]}  d5 {[%clk 0:01:12]} 22. exd5 {[%clk 0:00:43]}  Bxd5 {[%clk 0:01:12]} 23. Bxd5 {[%clk 0:00:37]}  Qxd5 {[%clk 0:01:13]} 24. Rhe1 {[%clk 0:00:33]}  Rxh3 {[%clk 0:01:09]} 25. c4 {[%clk 0:00:29]}  Qf3 {[%clk 0:01:03]} 26. Bc7 {[%clk 0:00:20]}  Rxg3 {[%clk 0:00:58]} 27. Bxg3 {[%clk 0:00:18]}  Qxg3 {[%clk 0:00:59]} 28. Rf1 {[%clk 0:00:16]}  Qc7 {[%clk 0:00:49]} 29. c5 {[%clk 0:00:15]}  g5 {[%clk 0:00:43]} 30. Qc4 {[%clk 0:00:14]}  Rf8 {[%clk 0:00:35]} 31. Rf5 {[%clk 0:00:13]}  g4 {[%clk 0:00:34]} 32. Rdf1 {[%clk 0:00:13]}  Nd6 {[%clk 0:00:32]} 33. Qa2 {[%clk 0:00:08]}  Nxf5 {[%clk 0:00:32]} 34. Rxf5 {[%clk 0:00:09]}  g3 {[%clk 0:00:32]} 35. Rg5 {[%clk 0:00:09]}  Bh6 {[%clk 0:00:32]} 36. Kb1 {[%clk 0:00:05]}  Bxg5 {[%clk 0:00:32]} 37. Qa1 {[%clk 0:00:02]}  Qf4 {[%clk 0:00:29]} 38. c6 {[%clk 0:00:01]}  bxc6 {[%clk 0:00:28]} 39. Ka2 {[%clk 0:00:02]}  Qc1 {[%clk 0:00:27]} 0-1


[Site "https://www.chess.com"]

[Event "Titled Tuesday Blitz June 6 Late 2023"]
[White "Rian, Kapriaga"]
[Black "Tsukerman, Julia"]
[WhiteFideId "7103263"]
[BlackFideId "2621649"]
[WhiteElo "2327"]
[BlackElo "1667"]
[Result "0-1"]
[Round "6"]
[TimeControl "180+2"]
[Date "2023.06.07"]
[WhiteClock "0:00:03"]
[BlackClock "0:00:08"]
[Board "141"]

1. d4 {[%clk 0:02:59]}  d5 {[%clk 0:02:51]} 2. c4 {[%clk 0:02:58]}  e6 {[%clk 0:02:51]} 3. Nf3 {[%clk 0:02:56]}  Nf6 {[%clk 0:02:50]} 4. g3 {[%clk 0:02:49]}  Be7 {[%clk 0:02:47]} 5. Bg2 {[%clk 0:02:48]}  O-O {[%clk 0:02:47]} 6. O-O {[%clk 0:02:46]}  dxc4 {[%clk 0:02:47]} 7. Ne5 {[%clk 0:02:45]}  Nc6 {[%clk 0:02:46]} 8. Bxc6 {[%clk 0:02:43]}  bxc6 {[%clk 0:02:46]} 9. Nxc6 {[%clk 0:02:43]}  Qe8 {[%clk 0:02:45]} 10. Nxe7+ {[%clk 0:02:42]}  Qxe7 {[%clk 0:02:46]} 11. Qa4 {[%clk 0:02:41]}  e5 {[%clk 0:02:32]} 12. dxe5 {[%clk 0:02:36]}  Qxe5 {[%clk 0:02:25]} 13. Nc3 {[%clk 0:02:35]}  Be6 {[%clk 0:02:02]} 14. Bf4 {[%clk 0:02:33]}  Qc5 {[%clk 0:01:55]} 15. Rad1 {[%clk 0:02:15]}  h6 {[%clk 0:01:27]} 16. Rd2 {[%clk 0:02:02]}  Rfc8 {[%clk 0:01:15]} 17. Qb5 {[%clk 0:01:59]}  Qb6 {[%clk 0:01:00]} 18. Be3 {[%clk 0:00:52]}  Qxb5 {[%clk 0:00:55]} 19. Nxb5 {[%clk 0:00:52]}  Nd5 {[%clk 0:00:47]} 20. Bc5 {[%clk 0:00:44]}  a6 {[%clk 0:00:30]} 21. Nc3 {[%clk 0:00:43]}  Nxc3 {[%clk 0:00:24]} 22. bxc3 {[%clk 0:00:43]}  Rab8 {[%clk 0:00:24]} 23. e4 {[%clk 0:00:40]}  Rb5 {[%clk 0:00:23]} 24. Ba3 {[%clk 0:00:36]}  Rcb8 {[%clk 0:00:23]} 25. f4 {[%clk 0:00:34]}  f6 {[%clk 0:00:15]} 26. f5 {[%clk 0:00:32]}  Bf7 {[%clk 0:00:16]} 27. Rd7 {[%clk 0:00:26]}  c5 {[%clk 0:00:15]} 28. Rc7 {[%clk 0:00:24]}  Ra5 {[%clk 0:00:14]} 29. Bxc5 {[%clk 0:00:18]}  Rxa2 {[%clk 0:00:14]} 30. Rf2 {[%clk 0:00:14]}  Rb1+ {[%clk 0:00:13]} 31. Kg2 {[%clk 0:00:14]}  Rxf2+ {[%clk 0:00:13]} 32. Kxf2 {[%clk 0:00:13]}  Rb2+ {[%clk 0:00:12]} 33. Kf3 {[%clk 0:00:11]}  Rb8 {[%clk 0:00:12]} 34. Ra7 {[%clk 0:00:11]}  Rc8 {[%clk 0:00:12]} 35. Bb4 {[%clk 0:00:09]}  Be8 {[%clk 0:00:09]} 36. g4 {[%clk 0:00:08]}  Bb5 {[%clk 0:00:09]} 37. Kf4 {[%clk 0:00:08]}  Re8 {[%clk 0:00:09]} 38. Be7 {[%clk 0:00:07]}  Bc6 {[%clk 0:00:08]} 39. e5 {[%clk 0:00:06]}  fxe5+ {[%clk 0:00:08]} 40. Kxe5 {[%clk 0:00:07]}  Bb5 {[%clk 0:00:08]} 41. Kd6 {[%clk 0:00:05]}  Kh7 {[%clk 0:00:08]} 42. f6 {[%clk 0:00:05]}  gxf6 {[%clk 0:00:08]} 43. Bxf6+ {[%clk 0:00:05]}  Kg6 {[%clk 0:00:08]} 44. Bd4 {[%clk 0:00:05]}  Kg5 {[%clk 0:00:08]} 45. Rg7+ {[%clk 0:00:04]}  Kh4 {[%clk 0:00:08]} 46. Kc5 {[%clk 0:00:03]}  Re4 {[%clk 0:00:08]} 0-1


[Site "https://www.chess.com"]